bitfinex-derivatives/quotes_ETHF0:USTF0_20251013
["timestamp","ask_amount","ask_price","bid_price","bid_amount"]
[1760337438114,3.08124375,4170.7,4170.6,0.32085274]
[1760337438510,3.2078,4171.2,4171.1,0.3186]
[1760337438914,3.15918953,4171.2,4171.1,0.3186]
[1760337439213,3.2078,4171.7,4171.1,0.3186]
[1760337439214,3.15918953,4171.4,4171.1,0.3186]
[1760337439722,3.15918953,4171.6,4171.5,0.4772]
[1760337439918,3.2078,4171.7,4171.6,0.3415]
[1760337440318,6.27189001,4171.7,4171.6,0.3415]
[1760337441423,3.2078,4171.7,4171.6,0.3415]
[1760337443317,3.2078,4172.2,4171.6,0.3415]
[1760337443523,3.2078,4172.2,4172.1,0.3415]
[1760337443725,3.05689603,4172.2,4172.1,0.3415]
[1760337444122,0.43116,4172.3,4172.1,0.3415]
[1760337444325,3.6084174,4172.3,4172.0,0.1357]
[1760337444519,0.43116,4172.3,4172.0,0.1357]
[1760337444721,3.1772574,4172.2,4172.1,0.3415]
[1760337446119,3.0800892,4172.3,4172.1,0.3415]
[1760337446320,0.47286719,4172.4,4172.1,0.3415]
[1760337446524,3.0800892,4172.3,4172.1,0.3415]
[1760337446725,3.5112492,4172.3,4172.1,0.3415]
[1760337447524,3.0800892,4172.3,4172.1,0.3415]
[1760337447923,3.5112492,4172.3,4172.1,0.3415]
[1760337448428,3.0800892,4172.3,4172.1,0.3415]
[1760337449020,0.43121,4171.8,4171.7,0.3415]
[1760337449327,3.51733688,4171.8,4171.7,0.3415]
[1760337449922,3.08612688,4171.8,4171.1,0.3415]
[1760337450121,0.43124,4171.5,4171.0,0.127]
[1760337450329,0.43124,4171.5,4171.1,0.3415]
[1760337450626,3.05564493,4171.4,4171.1,0.3415]
[1760337451027,3.55403039,4171.5,4171.1,0.3415]
[1760337451333,3.63902,4171.7,4171.6,0.3415]
[1760337451733,6.76181039,4171.7,4171.6,0.3415]
[1760337452024,3.12279039,4171.7,4171.6,0.3415]
[1760337454031,3.12279039,4171.7,4171.0,0.55828]
[1760337454032,0.43127,4171.3,4171.1,0.3415]
[1760337454235,6.33059039,4171.7,4171.0,0.4685]
[1760337454236,0.43128,4171.1,4171.0,0.4685]
[1760337454530,3.12585677,4171.2,4171.1,0.3415]
[1760337454923,0.43125,4171.5,4171.1,0.3415]
[1760337455223,0.43126,4171.3,4171.0,0.127]
[1760337455419,0.43126,4171.3,4171.1,0.3415]
[1760337455622,3.12124013,4171.2,4171.1,0.3415]
[1760337455820,3.12124013,4171.2,4171.0,0.127]
[1760337455821,0.43128,4171.1,4171.0,0.127]
[1760337456034,0.43131,4170.8,4170.7,0.3415]
[1760337456425,3.53903042,4170.8,4170.7,0.3415]
[1760337457431,3.10772042,4170.8,4170.7,0.3415]
[1760337457827,0.43131,4170.9,4170.7,0.3415]
[1760337458028,3.05963183,4170.8,4170.7,0.3415]
[1760337461928,0.43132,4170.7,4170.6,0.00225274]
[1760337462128,0.43132,4170.7,4170.0,0.1357]
[1760337462129,0.43138,4170.1,4170.0,0.1357]
[1760337462532,3.59780804,4170.1,4170.0,0.1357]
[1760337462833,3.59780804,4170.1,4170.0,0.4772]
[1760337463134,3.16905872,4170.1,4170.0,0.47937401]
[1760337468738,0.00263068,4170.1,4170.0,0.47937401]
[1760337470638,0.00263068,4170.1,4170.0,3.68717401]
[1760337470838,0.00263068,4170.1,4170.0,4.31542433]
[1760337471141,3.2078,4170.9,4170.6,0.3351]
[1760337471434,3.63905,4171.4,4171.0,0.1279]
[1760337471642,3.63905,4171.4,4171.1,0.3351]
[1760337471835,3.15947682,4171.2,4171.1,0.3351]
[1760337472035,0.00295318,4171.2,4171.1,0.3351]
[1760337472432,3.11187426,4171.2,4171.1,0.3351]
[1760337474035,0.00295318,4171.2,4171.1,0.3351]
[1760337477545,3.04965164,4171.2,4171.1,0.3351]
[1760337479340,1.07826,4170.9,4170.1,0.3351]
[1760337479542,0.43137,4170.2,4170.1,0.3351]
[1760337479939,3.59737629,4170.2,4170.1,0.3351]
[1760337481941,3.2078,4170.5,4170.1,0.3351]
[1760337482240,3.48490254,4170.2,4170.0,0.47297401]
[1760337482436,0.43137,4170.2,4170.0,0.47297401]
[1760337482634,3.05353254,4170.1,4170.0,0.47297401]
[1760337482939,3.05353254,4170.1,4170.0,0.00217401]
[1760337488042,3.05353254,4170.1,4169.0,3.3357]
[1760337488043,0.43147,4169.3,4169.2,0.33292599]
[1760337488241,0.43154,4168.6,4168.5,3.3357]
[1760337489042,3.52788134,4168.6,4168.5,3.33821268]
[1760337489744,3.09634134,4168.6,4168.5,3.33821268]
[1760337489939,0.43149,4169.1,4169.0,0.1279]
[1760337490138,0.43149,4169.1,4169.0,0.463]
[1760337490436,3.54866642,4169.1,4169.0,0.463]
[1760337492250,3.2078,4169.7,4169.5,0.1279]
[1760337492450,3.63923,4169.7,4169.6,0.3351]
[1760337492844,6.81501538,4169.7,4169.6,0.3351]
[1760337493254,3.60721538,4169.7,4169.6,0.7605]
[1760337493454,3.17578538,4169.7,4169.6,0.7605]
[1760337493847,0.43142,4169.8,4169.6,0.4254]
[1760337494048,3.2078,4170.2,4170.0,0.3409]
[1760337494248,3.2078,4170.2,4170.1,0.5481]
[1760337494249,3.63917,4170.2,4170.1,0.5481]
[1760337494449,3.2078,4170.2,4170.1,0.7605]
[1760337494648,6.38076603,4170.2,4170.1,0.7605]
[1760337495345,3.17296603,4170.2,4170.1,0.7605]
[1760337495552,40.8,4171.1,4170.1,0.7605]
[1760337495553,0.00295318,4171.2,4171.1,0.3351]
[1760337495749,0.00295318,4171.2,4171.1,3.5429]
[1760337495950,3.2078,4172.3,4172.1,0.3351]
[1760337496453,0.43118,4172.2,4172.1,0.3351]
[1760337496950,0.43323559,4172.2,4172.1,0.33798555]
[1760337498849,0.00205559,4172.2,4172.1,0.33798555]
[1760337499252,0.00205559,4172.2,4172.1,0.76916555]
[1760337499848,3.63885,4173.4,4172.3,0.3354]
[1760337500057,3.2078,4173.4,4173.1,0.3354]
[1760337500346,0.04170839,4173.3,4173.1,0.3354]
[1760337500553,0.04170839,4173.3,4173.0,0.1335]
[1760337500756,0.4311,4172.8,4172.7,0.3354]
[1760337500957,0.43113,4172.6,4172.5,0.1335]
[1760337501153,0.43113,4172.6,4172.5,0.4689]
[1760337501357,3.53276869,4172.6,4172.5,0.4689]
[1760337502254,0.43117,4172.2,4172.0,0.1279]
[1760337502457,0.43117,4172.2,4171.9,0.3354]
[1760337502661,0.43117,4172.2,4171.5,3.3357]
[1760337502662,3.50121407,4172.2,4172.1,0.33828555]
[1760337504253,3.50121407,4172.2,4172.1,0.00288555]
[1760337504957,3.50121407,4172.2,4171.0,3.3413]
[1760337504958,0.43126,4171.3,4171.2,0.3354]
[1760337505162,0.43128,4171.1,4171.0,0.1335]
[1760337505366,0.43133,4170.6,4170.5,3.3413]
[1760337505656,3.59829814,4170.6,4170.5,3.6767]
[1760337505958,3.59829814,4170.6,4170.5,3.6795308]
[1760337507151,3.59829814,4170.6,4170.5,3.3441308]
[1760337507352,3.59829814,4170.6,4170.5,8e-07]
[1760337507656,3.59829814,4170.6,4169.1,0.3354]
[1760337507657,0.43148,4169.3,4169.1,0.3354]
[1760337508252,3.2078,4169.7,4169.5,0.1335]
[1760337508452,3.63923,4169.7,4169.6,0.3354]
[1760337508659,3.64119895,4169.7,4169.6,0.33711847]
[1760337508857,6.73469041,4169.7,4169.6,0.33711847]
[1760337509966,6.73469041,4169.7,4169.6,0.00171847]
[1760337510463,3.09546041,4169.7,4169.6,0.33711847]
[1760337511166,0.00196895,4169.7,4169.6,0.33711847]
[1760337514668,3.49091567,4169.7,4169.6,0.33711847]
[1760337514966,6.69871567,4169.7,4169.6,0.33711847]
[1760337515361,6.26728567,4169.7,4169.6,0.33711847]
[1760337520569,3.05948567,4169.7,4169.6,0.33711847]
[1760337522467,0.00196895,4169.7,4169.6,0.33711847]
[1760337523165,0.00196895,4169.7,4169.6,0.78241847]
[1760337525374,0.43128,4171.1,4171.0,0.1249]
[1760337525671,0.43128,4171.1,4171.0,0.4512]
[1760337525873,3.4796202,4171.1,4171.0,0.4512]
[1760337526470,3.4796202,4171.1,4170.5,0.4512]
[1760337526471,0.43133,4170.6,4170.5,0.4512]
[1760337526774,5.26562501,4170.8,4170.6,0.3263]
[1760337527075,0.43133,4170.6,4170.5,0.4512]
[1760337529978,3.16960203,4170.7,4170.6,0.3447]
[1760337530979,3.16960203,4170.7,4170.6,0.7851]
[1760337531181,3.16960203,4170.7,4170.6,0.3447]
[1760337531378,0.43143,4169.7,4169.6,0.00171847]
[1760337531780,3.50740532,4169.7,4169.6,0.00171847]
[1760337532086,3.50740532,4169.7,4169.6,0.34641847]
[1760337534288,3.50740532,4169.7,4169.6,0.00171847]
[1760337535389,3.50740532,4169.7,4169.6,0.34641847]
[1760337538893,3.50740532,4169.7,4169.6,0.00171847]
[1760337540599,3.50740532,4169.7,4169.6,0.34641847]
[1760337541701,3.50740532,4169.7,4169.6,0.56921847]
[1760337542101,3.50740532,4169.7,4169.6,0.34641847]
[1760337542901,3.50740532,4169.7,4169.6,0.78681847]
[1760337542902,3.07597532,4169.7,4169.6,0.78681847]
[1760337543297,0.43141,4169.9,4169.7,0.3447]
[1760337543502,0.43141,4169.9,4169.8,0.3447]
[1760337543802,3.54284096,4169.9,4169.8,0.3447]
[1760337545003,11.58495597,4169.9,4169.8,0.3447]
[1760337545400,11.58495597,4169.9,4169.6,0.00171847]
[1760337545401,0.43143,4169.7,4169.6,0.00171847]
[1760337545706,3.50938647,4169.7,4169.6,0.00171847]
[1760337546797,3.50938647,4169.7,4168.8,4.04882171]
[1760337546798,0.43151,4168.9,4168.8,3.2078]
[1760337547004,0.43154,4168.6,4168.5,0.4733]
[1760337547402,3.60989025,4168.6,4168.5,0.4733]
[1760337547797,3.60989025,4168.6,4168.5,0.47504203]
[1760337548701,3.17835025,4168.6,4168.5,0.47504203]
[1760337549109,3.5310427,4168.7,4168.6,0.3447]
[1760337549310,0.43153,4168.7,4168.6,0.3447]
[1760337549603,3.54683307,4168.7,4168.6,0.3447]
[1760337549801,3.54683307,4168.7,4168.5,0.00174203]
[1760337550109,4.83431501,4168.6,4168.5,0.00174203]
[1760337550407,4.83431501,4168.6,4167.6,0.63273997]
[1760337550408,0.43163,4167.7,4167.6,0.63273997]
[1760337550707,3.61232221,4167.7,4167.6,0.3447]
[1760337551101,3.61232221,4167.7,4167.0,0.76133997]
[1760337551303,3.18267882,4167.7,4167.6,0.7851]
[1760337551610,0.00198661,4167.7,4167.6,0.7851]
[1760337552302,3.13092893,4167.7,4167.6,0.5675]
[1760337552501,3.13092893,4167.7,4167.6,0.3447]
[1760337552706,3.13092893,4167.7,4167.6,0.7851]
[1760337555315,0.00198661,4167.7,4167.6,0.7851]
[1760337556606,0.43153,4168.8,4168.7,0.5675]
[1760337556807,0.43153,4168.8,4168.7,0.3447]
[1760337557106,3.50478879,4168.8,4168.7,0.3447]
[1760337557516,3.50732742,4168.8,4168.7,0.3447]
[1760337559416,0.43154,4168.6,4168.5,0.1286]
[1760337559616,0.43154,4168.6,4168.5,0.4537]
[1760337559816,3.52674439,4168.6,4168.5,0.4537]
[1760337560510,3.52674439,4168.6,4168.5,0.1286]
[1760337560719,3.52674439,4168.6,4168.0,0.4537]
[1760337560720,0.43159,4168.1,4168.0,0.4537]
[1760337560916,4.83431501,4168.2,4168.1,0.3251]
[1760337561320,4.83431501,4168.2,4168.1,0.5533]
[1760337561321,3.1841017,4168.2,4168.1,0.5533]
[1760337562817,3.1841017,4168.2,4168.1,0.3251]
[1760337563914,8.01841671,4168.2,4168.1,0.3251]
[1760337565817,8.01841671,4168.2,4168.1,0.5533]
[1760337568721,8.01841671,4168.2,4168.1,0.3251]
[1760337570920,0.43159,4168.1,4167.5,1.51956942]
[1760337571122,0.43159,4168.1,4168.0,0.4498]
[1760337571433,3.62056133,4168.1,4168.0,0.4498]
[1760337571720,3.18897133,4168.1,4168.0,0.8871]
[1760337574118,3.18897133,4168.1,4168.0,0.4498]
[1760337574828,3.18897133,4168.1,4168.0,0.8871]
[1760337575327,3.18897133,4168.1,4168.0,0.678]
[1760337575625,3.18897133,4168.1,4168.0,0.4498]
[1760337575824,3.18897133,4168.1,4168.0,0.678]
[1760337576424,3.18897133,4168.1,4168.0,0.8871]
[1760337577118,3.18897133,4168.1,4168.0,1.95034528]
[1760337577325,3.2078,4168.3,4168.2,0.7624]
[1760337577929,3.2078,4168.3,4168.2,1.19398]
[1760337578426,0.00253863,4168.8,4168.2,0.7624]
[1760337578626,0.00253863,4168.8,4168.0,0.1247]
[1760337578627,0.00253863,4168.8,4168.7,0.7624]
[1760337578820,0.00253863,4168.8,4168.7,1.39724745]
[1760337579726,3.54440645,4168.8,4168.7,0.3251]
[1760337579926,3.54440645,4168.8,4168.5,0.1247]
[1760337579927,0.43154,4168.6,4168.5,1.08464745]
[1760337580229,3.54188782,4168.6,4168.5,0.4498]
[1760337580430,3.54188782,4168.6,4168.5,0.678]
[1760337580627,3.54188782,4168.6,4168.5,0.1247]
[1760337580827,0.43157,4168.3,4168.0,0.75954745]
[1760337581027,0.43157,4168.3,4168.1,0.3251]
[1760337581227,3.14779773,4168.2,4168.1,1.18814745]
[1760337581429,3.14779773,4168.2,4168.1,0.7624]
[1760337582631,0.43158,4168.3,4168.2,0.3251]
[1760337583426,3.49516659,4168.3,4168.2,0.3251]
[1760337584732,3.06358659,4168.3,4168.2,0.3251]
[1760337585030,3.06358659,4168.3,4168.2,1.40472374]
[1760337585335,3.06358659,4168.3,4168.2,0.96032374]
[1760337585534,3.06358659,4168.3,4168.2,0.3251]
[1760337585734,3.06358659,4168.3,4168.2,0.5328]
[1760337586735,3.06358659,4168.3,4168.2,0.749]
[1760337586933,3.06358659,4168.3,4168.2,1.38422374]
[1760337587128,0.43154,4168.6,4168.5,0.4705]
[1760337587536,3.51701814,4168.6,4168.5,0.4705]
[1760337587935,3.51701814,4168.6,4168.5,0.6782]
[1760337588137,3.08547814,4168.6,4168.5,1.52962374]
[1760337588438,3.05768151,4168.7,4168.5,1.52962374]
[1760337588628,3.05768151,4168.7,4168.6,0.7691]
[1760337588835,0.43405863,4168.8,4168.6,0.4239]
[1760337589035,0.43405863,4168.8,4168.7,0.3452]
[1760337589437,3.56884024,4168.8,4168.7,0.5529]
[1760337589839,3.56884024,4168.8,4168.7,0.7691]
[1760337589840,3.13732024,4168.8,4168.7,0.7691]
[1760337590036,0.00253863,4168.8,4168.7,0.7691]
[1760337590335,0.00253863,4168.8,4168.7,1.20063]
[1760337590534,40.8,4169.9,4168.6,0.63522374]
[1760337590535,3.2078,4169.9,4169.8,0.5446]
[1760337590735,3.2078,4169.9,4169.8,0.7701]
[1760337590938,6.32894545,4169.9,4169.8,0.7701]
[1760337591541,6.33126544,4169.9,4169.8,0.7701]
[1760337594345,3.21011999,4169.9,4169.8,0.7701]
[1760337595440,3.21011999,4169.9,4169.8,0.3263]
[1760337595441,6.31454688,4169.9,4169.8,0.3263]
[1760337595744,6.31454688,4169.9,4169.6,0.3263]
[1760337595745,0.43142,4169.8,4169.6,0.3263]
[1760337595938,7.9923722,4169.9,4169.5,0.136]
[1760337595939,0.43143,4169.7,4169.5,0.136]
[1760337596143,3.53585689,4169.7,4169.5,0.4623]
[1760337596340,3.53585689,4169.7,4169.6,0.3263]
[1760337596547,0.43146,4169.4,4169.3,0.3263]
[1760337596739,0.43146,4169.4,4169.1,0.3263]
[1760337596740,3.63926,4169.4,4169.1,0.3263]
[1760337596947,1.67782532,4169.2,4169.0,0.136]
[1760337597147,1.67782532,4169.2,4169.1,0.5446]
[1760337597349,1.67782532,4169.2,4169.1,0.7701]
[1760337597538,4.83391823,4169.2,4169.1,0.7701]
[1760337597946,1.67782532,4169.6,4169.1,1.20159]
[1760337598147,1.67782532,4169.6,4169.5,0.6806]
[1760337598548,3.10251497,4169.6,4169.5,0.9061]
[1760337600443,0.43142,4169.8,4169.5,0.136]
[1760337600444,3.09764446,4169.8,4169.5,0.136]
[1760337600649,3.09764446,4169.7,4169.6,0.3263]
[1760337600851,0.43142,4169.8,4169.6,0.3263]
[1760337601049,3.52906446,4169.8,4169.5,0.136]
[1760337601248,0.43144,4169.7,4169.6,0.3263]
[1760337601555,8.63242655,4169.7,4169.0,0.4623]
[1760337601749,3.2078,4169.2,4169.1,0.3263]
[1760337602053,6.38937148,4169.2,4169.1,0.3263]
[1760337603647,6.38937148,4169.2,4169.1,0.5446]
[1760337604748,6.38937148,4169.2,4169.1,0.3263]
[1760337605142,6.38937148,4169.2,4169.1,0.5446]
[1760337605350,6.38937148,4169.2,4169.1,0.7701]
[1760337605752,6.38937148,4169.2,4169.1,0.3263]
[1760337606650,6.38937148,4169.2,4169.0,0.136]
[1760337606850,6.38937148,4169.2,4168.5,0.1253]
[1760337606851,0.43153,4168.7,4168.5,0.1253]
[1760337607051,3.2078,4168.6,4168.5,0.4516]
[1760337607355,3.2078,4168.6,4168.5,0.1253]
[1760337607356,6.2610058,4168.6,4168.5,0.1253]
[1760337607750,6.2610058,4168.6,4168.5,0.4516]
[1760337609363,6.2610058,4168.6,4168.0,0.451]
[1760337609653,0.43158,4168.3,4168.0,0.1247]
[1760337609848,0.43159,4168.2,4168.1,0.3263]
[1760337610048,3.5756514,4168.2,4168.1,0.3263]
[1760337610249,3.5756514,4168.2,4168.0,0.1247]
[1760337610454,3.2078,4168.1,4168.0,0.451]
[1760337610852,6.29950616,4168.1,4168.0,0.451]
[1760337614264,6.29950616,4168.1,4168.0,0.1247]
[1760337614958,0.43163,4167.8,4167.7,0.3263]
[1760337615363,3.10716899,4167.8,4167.7,0.7701]
[1760337615964,3.10716899,4167.8,4167.7,0.5446]
[1760337616166,3.10716899,4167.8,4167.7,0.3263]
[1760337616466,0.43163,4167.8,4167.6,0.3263]
[1760337616666,3.51492062,4167.8,4167.6,0.3263]
[1760337616867,0.43164,4167.7,4167.6,0.3263]
[1760337617061,3.51493062,4167.7,4167.6,0.5446]
[1760337617562,0.43164,4167.7,4167.6,0.5446]
[1760337617769,3.50042277,4167.7,4167.6,0.5446]
[1760337618260,3.06878277,4167.7,4167.6,0.5446]
[1760337618660,3.49927896,4167.8,4167.7,0.3263]
[1760337618861,0.43163,4167.8,4167.7,0.7701]
[1760337619166,3.49927896,4167.8,4167.7,0.7701]
[1760337619469,3.49927896,4167.8,4167.7,0.3263]
[1760337620167,3.49927896,4167.8,4167.7,0.5446]
[1760337620671,0.43165,4167.6,4167.5,0.45327414]
[1760337620965,3.54953365,4167.6,4167.5,0.45327414]
[1760337621658,5.22900452,4167.6,4167.5,0.45327414]
[1760337622058,8.43680452,4167.6,4167.5,0.45327414]
[1760337622267,8.43680452,4167.6,4167.0,0.136]
[1760337622268,0.43169,4167.2,4167.0,0.4507]
[1760337622574,4.84017639,4167.1,4167.0,0.4507]
[1760337622870,8.04797639,4167.1,4167.0,0.4507]
[1760337623273,8.04797639,4167.1,4167.0,0.68144376]
[1760337623873,8.04797639,4167.1,4167.0,0.90354376]
[1760337625378,6.36850552,4167.1,4167.0,0.90354376]
[1760337625571,1.67947087,4167.4,4167.3,0.7646]
[1760337625971,4.75749487,4167.4,4167.3,0.7646]
[1760337628377,4.75749487,4167.4,4167.3,0.5425]
[1760337628577,4.75749487,4167.4,4167.3,0.3147]
[1760337629676,4.75749487,4167.4,4167.0,0.13894376]
[1760337629978,0.4317,4167.1,4167.0,0.45364376]
[1760337630370,3.54771179,4167.1,4167.0,0.45364376]
[1760337630874,6.75551179,4167.1,4167.0,0.45364376]
[1760337632080,6.32381179,4167.1,4167.0,0.90354376]
[1760337632280,4.88727087,4167.6,4167.5,0.673]
[1760337632673,8.00696672,4167.6,4167.5,0.673]
[1760337633372,8.00696672,4167.6,4167.5,0.8951]
[1760337633575,7.64454426,4167.6,4167.5,0.8951]
[1760337633772,6.32749585,4167.6,4167.5,0.8951]
[1760337634982,2.1645655,4168.8,4168.0,0.8951]
[1760337634983,3.2078,4168.1,4168.0,0.8951]
[1760337636282,4.52484841,4168.1,4168.0,0.8951]
[1760337636677,7.5817974,4168.1,4168.0,0.8951]
[1760337637482,2.34809127,4169.5,4168.0,0.8951]
[1760337637483,0.84983708,4169.9,4168.0,5.05827967]
[1760337637672,1.26945127,4170.8,4170.7,0.43133]
[1760337637876,1.31704841,4171.2,4170.8,0.3147]
[1760337638079,0.03290228,4171.0,4170.9,0.94780021]
[1760337638277,0.03290228,4171.0,4170.9,0.3147]
[1760337638480,0.03290228,4171.0,4170.8,1.74835841]
[1760337638481,1.31704841,4172.1,4171.1,0.3147]
[1760337638679,0.00217704,4172.0,4171.8,0.3147]
[1760337638880,0.00217704,4172.0,4171.9,0.3147]
[1760337640585,0.31697704,4172.0,4171.9,0.3147]
[1760337641987,0.00217704,4172.0,4171.9,0.3147]
[1760337642894,0.00217704,4172.0,4171.9,3.5225]
[1760337643278,0.00217704,4172.0,4171.9,3.9724]
[1760337643888,0.00217704,4172.0,4171.9,3.6577]
[1760337643889,0.53587704,4172.0,4171.9,3.6577]
[1760337644293,0.31697704,4172.0,4171.9,3.6577]
[1760337644589,0.53587704,4172.0,4171.9,3.6577]
[1760337644796,0.53587704,4172.0,4171.9,3.9746]
[1760337645884,0.2257,4171.5,4171.4,3.9638]
[1760337646082,0.5553,4171.5,4171.4,3.9638]
[1760337647188,0.56007704,4172.0,4171.4,3.9638]
[1760337647387,0.68417704,4172.0,4171.9,0.4391]
[1760337647693,3.73918414,4172.0,4171.9,0.756]
[1760337647884,3.73918414,4172.0,4171.9,0.4391]
[1760337648287,0.00217704,4172.0,4171.9,3.9638]
[1760337649585,0.76317704,4172.0,4171.9,3.6469]
[1760337649887,0.89397704,4172.0,4171.9,3.6469]
[1760337650295,0.89397704,4172.0,4171.9,3.9605]
[1760337650487,0.55227704,4172.0,4171.9,3.9605]
[1760337652004,0.89397704,4172.0,4171.9,3.4277]
[1760337654402,0.8891,4171.5,4171.4,3.2078]
[1760337654786,0.8891,4171.5,4171.4,3.4277]
[1760337654993,0.43122,4171.8,4171.4,3.9638]
[1760337655302,3.62859708,4171.7,4171.6,0.4424]
[1760337655495,3.83949708,4171.7,4171.6,0.4424]
[1760337657589,0.3538,4171.5,4171.4,3.2078]
[1760337657793,0.8891,4171.5,4171.4,3.2078]
[1760337658198,0.8891,4171.5,4171.4,3.4277]
[1760337658401,0.8891,4171.5,4171.4,0.2199]
[1760337659092,0.4339,4171.2,4171.1,0.00205899]
[1760337659289,0.7583,4171.2,4171.1,0.00205899]
[1760337659594,2.18247665,4171.2,4171.1,0.22195899]
[1760337659795,5.35356118,4171.2,4171.1,0.00205899]
[1760337660900,5.14266118,4171.2,4171.1,0.44445899]
[1760337661403,5.35356118,4171.2,4171.1,0.44445899]
[1760337661603,3.92938453,4171.2,4171.1,0.44445899]
[1760337662004,3.71848453,4171.2,4171.1,0.44445899]
[1760337662194,3.92938453,4171.2,4171.1,0.44445899]
[1760337662400,3.92938453,4171.2,4171.1,0.00205899]
[1760337663195,3.92938453,4171.2,4170.4,3.2078]
[1760337663196,1.32045,4170.5,4170.4,3.2078]
[1760337663596,4.41426515,4170.5,4170.4,3.2078]
[1760337663798,3.98291515,4170.5,4170.4,3.2078]
[1760337664001,3.98291515,4170.5,4170.4,3.4277]
[1760337664295,3.98291515,4170.5,4170.4,3.9659552]
[1760337664495,3.98291515,4170.5,4170.4,3.6523552]
[1760337664908,3.98291515,4170.5,4170.4,3.2099552]
[1760337665607,3.98291515,4170.5,4170.4,3.4298552]
[1760337666706,3.98291515,4170.5,4170.4,3.2099552]
[1760337667705,3.98291515,4170.5,4169.4,3.3048164]
[1760337667706,1.3205,4170.0,4169.4,3.3048164]
[1760337668000,0.8891,4169.5,4169.4,3.43486]
[1760337668201,0.5474,4169.5,4169.4,3.65736]
[1760337668406,0.7583,4169.9,4169.8,0.2199]
[1760337668600,0.7583,4169.9,4169.8,0.4424]
[1760337668798,3.840282,4169.9,4169.8,0.44427502]
[1760337670202,3.840282,4169.9,4169.8,0.00187502]
[1760337670906,3.840282,4169.9,4169.8,0.44427502]
[1760337671095,3.840282,4169.9,4169.4,3.21496]
[1760337671096,0.43142,4169.8,4169.4,3.21496]
[1760337671302,0.8891,4169.5,4169.4,3.21496]
[1760337671612,4.04587585,4169.5,4169.4,3.21496]
[1760337672008,4.04587585,4169.5,4169.4,0.00716]
[1760337672206,4.04587585,4169.5,4169.4,0.00891039]
[1760337673102,4.04587585,4169.5,4169.4,0.45131039]
[1760337673302,4.04587585,4169.5,4169.4,3.65911039]
[1760337673903,4.04587585,4169.5,4169.4,3.21671039]
[1760337674198,4.04587585,4169.5,4169.4,0.00891039]
[1760337674703,4.04587585,4169.5,4169.4,0.22881039]
[1760337675006,4.47732585,4169.5,4169.4,0.00891039]
[1760337675611,4.04587585,4169.5,4169.4,0.00891039]
[1760337679814,4.04587585,4169.5,4169.4,0.22171039]
[1760337680515,4.04587585,4169.5,4169.4,0.44631039]
[1760337681515,4.04587585,4169.5,4169.4,0.00891039]
[1760337682412,4.04587585,4169.5,4169.4,0.44631039]
[1760337682609,0.3284,4170.0,4169.9,0.7621]
[1760337683717,0.5553,4170.0,4169.9,0.7621]
[1760337684013,0.8961,4170.0,4169.9,0.4374]
[1760337684217,0.8961,4169.5,4169.4,3.21671039]
[1760337684614,0.8961,4169.5,4169.4,0.00891039]
[1760337684615,3.96445676,4169.5,4169.4,0.00891039]
[1760337687920,7.17225676,4169.5,4169.4,0.00891039]
[1760337688122,0.43154,4168.7,4168.4,3.2078]
[1760337688417,1.07867,4169.4,4168.4,3.2078]
[1760337688418,2.32095857,4168.5,4168.4,3.2078]
[1760337688824,5.48366627,4168.5,4168.4,3.2078]
[1760337689320,5.4857529,4168.5,4168.4,3.20984997]
[1760337691526,8.89955463,4168.5,4168.4,3.20984997]
[1760337692820,8.89955463,4168.5,4168.4,2.69742438]
[1760337693422,0.7834,4167.3,4167.2,3.2078]
[1760337694019,0.331,4166.8,4166.7,3.2078]
[1760337694222,0.7834,4166.8,4166.7,3.2078]
[1760337694427,0.7834,4166.8,4166.7,3.20995276]
[1760337694732,0.331,4166.9,4166.7,3.64975276]
[1760337694927,0.331,4166.9,4166.8,0.7782]
[1760337695127,3.64130829,4166.9,4166.8,0.4398]
[1760337695327,3.87140829,4166.9,4166.8,0.4398]
[1760337695832,3.87140829,4166.9,4166.8,0.2166]
[1760337696028,3.87140829,4166.9,4166.7,3.20995276]
[1760337696029,0.7834,4166.8,4166.7,3.20995276]
[1760337696429,4.34881822,4166.8,4166.7,0.00215276]
[1760337698042,3.91708822,4166.8,4166.7,0.21875276]
[1760337698839,3.91708822,4166.8,4166.7,1.21209276]
[1760337698840,0.5533,4166.8,4166.7,1.21209276]
[1760337699039,0.5533,4166.8,4166.7,0.87369276]
[1760337699237,0.7834,4166.8,4166.7,0.87369276]
[1760337700734,0.04176997,4166.9,4166.7,0.78035276]
[1760337700939,0.331,4166.8,4166.7,0.78035276]
[1760337701328,0.7834,4166.8,4166.7,0.44195276]
[1760337701531,0.7834,4166.8,4166.7,0.00215276]
[1760337703043,0.7834,4166.8,4166.7,0.21875276]
[1760337705938,0.7834,4166.8,4166.7,0.44195276]
[1760337706138,0.331,4167.3,4167.2,0.43169]
[1760337706436,0.331,4167.3,4167.2,1.20989]
[1760337706745,0.36056435,4167.5,4167.4,1.19157]
[1760337706947,0.57896435,4167.5,4167.4,1.19157]
[1760337707748,0.04176435,4167.5,4167.4,1.19157]
[1760337707945,0.36056435,4167.5,4167.4,1.19157]
[1760337708147,0.57896435,4167.5,4167.4,1.19157]
[1760337709241,0.79986435,4167.5,4167.4,0.86087]
[1760337709449,0.93696435,4167.5,4167.4,0.4292]
[1760337713143,0.3256,4167.4,4167.1,3.2078]
[1760337713342,2.44062627,4167.2,4167.1,3.2078]
[1760337715142,5.99651115,4167.2,4167.1,3.2078]
[1760337716348,5.56482115,4167.2,4167.1,3.2078]
[1760337720851,5.56482115,4167.2,4167.1,3.4224]
[1760337721354,5.56482115,4167.2,4167.1,3.2078]
[1760337722648,3.88579488,4167.2,4167.1,3.6372]
[1760337722850,4.31748488,4167.2,4167.1,3.6372]
[1760337723155,4.31748488,4167.2,4167.1,3.4224]
[1760337723156,5.99651115,4167.2,4167.1,3.4224]
[1760337723947,5.99651115,4167.2,4167.1,3.2078]
[1760337724156,0.8923,4167.0,4166.9,1.06027746]
[1760337724357,0.8923,4167.0,4166.9,0.2146]
[1760337726053,0.43172,4166.9,4166.7,0.84783022]
[1760337726258,2.44062627,4166.8,4166.7,0.84783022]
[1760337726553,5.61067397,4166.8,4166.7,0.00215276]
[1760337727349,0.1307,4166.0,4165.9,4.05347746]